bitfinex-derivatives/quotes_SOLF0:USTF0_20240827
["timestamp","ask_amount","ask_price","bid_price","bid_amount"]
[1724802701914,28.7,147.06,147.03,1.02317072]
[1724802702313,28.74479837,147.06,147.03,1.02317072]
[1724802703028,0.04479837,147.06,147.03,1.02317072]
[1724802703226,0.04479837,147.06,147.04,1.02317072]
[1724802703421,0.04479837,147.06,147.05,1.02317072]
[1724802703620,0.04479837,147.06,147.05,4.42217072]
[1724802703821,0.04479837,147.06,147.05,4.42117257]
[1724802704425,0.04479837,147.06,147.05,1.02217257]
[1724802705219,0.04479837,147.06,147.02,1.02217257]
[1724802705424,0.04479837,147.06,147.03,1.02217257]
[1724802705623,0.04479837,147.06,147.04,1.02217257]
[1724802705938,0.04479837,147.06,147.05,1.02217257]
[1724802706227,0.04479837,147.06,147.03,1.02217257]
[1724802706433,0.04479837,147.06,147.04,1.02217257]
[1724802706731,0.04479837,147.06,147.05,1.02217257]
[1724802707233,0.04479837,147.06,147.02,1.02217257]
[1724802707422,0.04479837,147.06,147.03,1.02217257]
[1724802707726,0.04479837,147.06,147.04,1.02217257]
[1724802707927,0.04479837,147.06,147.05,1.02217257]
[1724802708115,0.04479837,147.06,147.03,1.02217257]
[1724802708316,0.04479837,147.06,147.01,10.02511719]
[1724802708539,0.04479837,147.06,147.02,1.02250077]
[1724802709221,0.04479837,147.06,147.02,4.42210077]
[1724802709531,0.04479837,147.06,147.03,1.02250077]
[1724802711330,0.04479837,147.06,147.04,1.02250077]
[1724802711527,0.04479837,147.06,147.01,13.42491719]
[1724802711729,3.44359837,147.06,147.02,1.02329101]
[1724802712322,3.44359837,147.06,147.01,13.42491719]
[1724802712550,3.44359837,147.06,147.02,1.02317469]
[1724802713624,0.04479837,147.06,147.02,1.02317469]
[1724802714231,0.04479837,147.06,147.02,4.42277469]
[1724802714431,0.04479837,147.06,147.03,1.02317469]
[1724802716825,0.04479837,147.06,147.02,3.3996]
[1724802717026,0.04479837,147.06,147.03,1.02372676]
[1724802718035,11.52479837,147.06,147.03,1.02372676]
[1724802718233,11.52479837,147.06,147.03,4.42312676]
[1724802718426,11.52479837,147.06,147.04,1.02372676]
[1724802718626,11.52479837,147.06,147.0,6.64]
[1724802718835,11.48,147.03,147.01,4.45836506]
[1724802719028,11.48,147.03,147.02,1.0231535]
[1724802719226,0.0506352,147.04,147.02,1.0231535]
[1724802719420,0.0506352,147.04,147.0,3.45798381]
[1724802719421,0.0506352,147.04,147.03,1.0231535]
[1724802719827,0.0506352,147.04,147.02,3.470019]
[1724802720031,0.0506352,147.04,147.03,1.0231535]
[1724802720429,0.0506352,147.04,147.01,1.0231535]
[1724802720674,0.0506352,147.04,146.99,11.48]
[1724802720838,0.0506352,147.04,147.0,4.41931862]
[1724802721034,0.0506352,147.04,147.01,1.02273198]
[1724802721824,0.0506352,147.04,147.0,3.39658664]
[1724802722042,11.5306352,147.04,147.01,1.02171913]
[1724802722235,11.5306352,147.04,147.02,1.02171913]
[1724802722436,11.5306352,147.04,146.98,1.02171913]
[1724802722639,14.9299352,147.04,146.99,3.4003]
[1724802722841,14.9299352,147.04,147.0,1.02186642]
[1724802723740,0.0506352,147.04,147.0,1.02186642]
[1724802723939,0.0506352,147.04,147.01,1.02186642]
[1724802724138,0.0506352,147.04,147.02,3.35160399]
[1724802724341,0.0506352,147.04,147.03,1.02186642]
[1724802725636,0.0506352,147.04,147.03,4.42126642]
[1724802725835,0.0506352,147.04,147.03,1.02186642]
[1724802726447,0.0506352,147.04,147.03,4.42126642]
[1724802727245,11.48,147.08,147.04,3.3992]
[1724802727443,11.48,147.08,147.05,1.02186642]
[1724802727831,16.1355,147.08,147.05,1.02186642]
[1724802728146,16.1355,147.08,147.03,6.64]
[1724802728147,1.2572,147.08,147.03,6.64]
[1724802728342,0.04591592,147.07,147.06,3.3987]
[1724802728553,0.04385068,147.08,147.06,11.48]
[1724802728732,0.05084721,147.08,147.06,11.5306352]
[1724802728938,0.05084721,147.08,147.07,14.8785]
[1724802729135,0.05084721,147.08,147.07,3.3985]
[1724802729438,0.05084721,147.08,147.06,0.0506352]
[1724802730352,0.05084721,147.08,147.06,3.4493352]
[1724802730538,0.05084721,147.08,147.06,0.0506352]
[1724802732045,11.48,147.07,147.06,0.0506352]
[1724802732438,14.8785,147.07,147.06,0.0506352]
[1724802733839,16.1047,147.07,147.06,0.0506352]
[1724802737552,12.7062,147.07,147.01,3.3997]
[1724802737846,2.5537,147.07,147.0,10.03521156]
[1724802738050,14.0337,147.07,147.02,3.3996]
[1724802738259,3.3987,147.06,147.02,3.3996]
[1724802738454,11.48,147.11,147.03,11.48]
[1724802738752,0.05063879,147.08,147.05,11.48]
[1724802739141,0.05063879,147.08,147.06,3.3987]
[1724802739647,0.05063879,147.08,147.0,10.03521156]
[1724802739849,0.05063879,147.08,147.03,11.48]
[1724802741048,3.44893879,147.08,147.04,3.3991]
[1724802741250,3.44893879,147.08,147.01,11.48]
[1724802741251,11.48,147.07,147.01,11.48]
[1724802741555,3.3988,147.06,147.01,11.48]
[1724802741757,0.04595734,147.05,147.0,21.51521156]
[1724802742752,11.48,147.04,146.98,6.6]
[1724802743252,1.27155734,147.05,147.0,11.48]
[1724802743458,1.27155734,147.05,147.0,14.94648092]
[1724802744455,1.27155734,147.05,147.01,3.3998]
[1724802747244,0.04595734,147.05,147.01,3.3998]
[1724802747457,0.04595734,147.05,147.03,11.48]
[1724802748052,0.04595734,147.05,147.03,14.8793]
[1724802748555,0.04595734,147.05,147.03,3.3993]
[1724802749155,0.04595734,147.05,147.01,3.36689479]
[1724802749361,0.04595734,147.05,147.0,1.2524]
[1724802749663,0.04595734,147.05,147.01,3.36065968]
[1724802749860,0.04595734,147.05,147.0,12.7324]
[1724802750564,0.04595734,147.05,147.01,3.3998]
[1724802750756,0.04595734,147.05,146.98,18.08]
[1724802750961,3.44495734,147.05,147.0,3.4001]
[1724802751162,0.04595734,147.05,147.0,14.8801]
[1724802751361,0.04595734,147.05,147.0,14.8799]
[1724802751549,0.04595734,147.05,147.0,11.48]
[1724802752153,0.04595734,147.05,146.99,28.71]
[1724802752661,0.04595734,147.05,147.0,1.02801519]
[1724802752857,0.04595734,147.05,147.01,3.3997]
[1724802753179,0.04595734,147.05,147.01,28.71]
[1724802753859,0.04595734,147.05,147.02,3.3995]
[1724802755959,0.04595734,147.05,146.98,3.4765445]
[1724802756160,0.04595734,147.05,146.99,1.02804121]
[1724802756360,0.04595734,147.05,146.99,4.37159108]
[1724802756561,0.04595734,147.05,146.99,3.34354987]
[1724802757085,3.3993,147.04,146.99,6.74384987]
[1724802757755,3.3995,147.03,146.99,3.34354987]
[1724802758575,3.3993,147.04,146.99,6.74384987]
[1724802759167,0.04595734,147.05,146.99,3.34354987]
[1724802759472,3.3994,147.03,146.99,3.34354987]
[1724802761274,3.3992,147.04,146.99,3.4003]
[1724802761577,3.3992,147.04,147.0,3.39114792]
[1724802762771,0.04595734,147.05,147.0,3.39114792]
[1724802763079,0.04595734,147.05,146.99,28.71]
[1724802763779,0.04595734,147.05,147.01,3.3997]
[1724802765179,3.44495734,147.05,147.0,3.4]
[1724802765968,0.04595734,147.05,146.98,9.99171854]
[1724802767382,0.04595734,147.05,146.98,9.97171854]
[1724802767574,0.04595734,147.05,146.98,6.58]
[1724802767782,0.04595734,147.05,146.98,9.96038016]
[1724802767977,0.04595734,147.05,147.0,3.4001]
[1724802768273,3.44495734,147.05,147.0,3.4001]
[1724802769177,0.04595734,147.05,146.98,9.96038016]
[1724802769368,0.04595734,147.05,146.98,13.36088016]
[1724802770478,3.3996,147.03,146.98,13.36088016]
[1724802770781,0.050747,147.02,146.98,13.36088016]
[1724802771676,3.450447,147.02,146.98,3.38038016]
[1724802771880,3.450447,147.02,146.97,4.7334]
[1724802772277,3.450447,147.02,146.97,8.062907]
[1724802772474,11.49,147.01,146.97,6.730307]
[1724802772774,14.8899,147.01,146.97,3.329507]
[1724802773073,14.8899,147.01,146.96,9.981]
[1724802773381,14.8899,147.01,146.96,13.36761923]
[1724802774073,3.3999,147.01,146.96,13.36761923]
[1724802774374,14.8899,147.01,146.96,13.36761923]
[1724802776774,11.49,147.01,146.96,3.38661923]
[1724802776980,11.49,146.99,146.94,6.58]
[1724802777281,11.49,146.96,146.95,1.02840084]
[1724802777481,11.49,146.96,146.94,1.02840084]
[1724802777672,0.04623721,146.97,146.95,1.02840084]
[1724802777868,11.49,146.96,146.89,6.58]
[1724802778070,0.05036693,146.94,146.9,1.02874331]
[1724802778278,0.05036693,146.94,146.89,18.07]
[1724802779081,0.05036693,146.94,146.9,3.4023]
[1724802781373,0.05036693,146.94,146.89,6.58]
[1724802781581,28.80036693,146.94,146.86,4.70863352]
[1724802781787,28.80036693,146.94,146.86,11.28863352]
[1724802782174,3.4019,146.93,146.88,3.4028]
[1724802782378,28.80036693,146.94,146.86,11.28863352]
[1724802782592,0.04341858,146.91,146.86,7.8592]
[1724802782983,28.75,146.9,146.81,27.2]
[1724802783174,0.0433448,146.87,146.82,8.82854792]
[1724802783380,0.0433448,146.87,146.83,1.02934792]
[1724802783577,0.0433448,146.87,146.85,3.4034]
[1724802784577,0.0433448,146.87,146.86,3.4034]
[1724802787978,1.3219,146.95,146.89,0.0445104]
[1724802788182,28.75,146.96,146.89,3.44086665]
[1724802788391,28.75,146.96,146.91,3.4022]
[1724802788686,28.75,146.96,146.91,6.7957777]
[1724802788908,0.05094013,146.95,146.92,0.0445104]
[1724802789880,0.05094013,146.95,146.94,3.4015]
[1724802790083,0.05094013,146.95,146.92,0.0445104]
[1724802790586,0.05094013,146.95,146.94,3.4015]
[1724802790788,0.05094013,146.95,146.92,0.0445104]
[1724802793393,28.80094013,146.95,146.92,0.0445104]
[1724802793888,0.05094013,146.95,146.92,0.0445104]
[1724802794284,28.80094013,146.95,146.92,0.0445104]
[1724802795394,32.20224013,146.95,146.92,0.0445104]
[1724802795598,28.80094013,146.95,146.92,0.0445104]
[1724802798595,28.75,146.93,146.83,1.3483]
[1724802798799,28.75,146.91,146.85,6.56]
[1724802799393,28.75,146.91,146.87,3.403]
[1724802799595,0.05233737,146.9,146.85,9.88043527]
[1724802800389,0.05233737,146.9,146.85,3.32043527]
[1724802800587,0.05233737,146.9,146.85,3.4034]
[1724802800795,0.05233737,146.9,146.86,3.3837011]
[1724802801392,3.45493737,146.9,146.86,3.3837011]
[1724802801597,3.45493737,146.9,146.85,3.4034]
[1724802801598,0.05233737,146.9,146.85,3.4034]
[1724802801786,0.05233737,146.9,146.85,6.74401978]
[1724802801988,3.4027,146.89,146.85,3.34061978]
[1724802802292,28.75,146.88,146.83,3.41173299]
[1724802802537,0.05200743,146.87,146.82,9.9641]
[1724802802898,0.05200743,146.87,146.83,3.37056218]
[1724802803101,0.05200743,146.87,146.83,6.77456218]
[1724802803506,0.05200743,146.87,146.83,3.404]
[1724802803795,0.05200743,146.87,146.82,3.4041]
[1724802803997,28.80200743,146.87,146.82,3.4041]
[1724802804303,32.20530743,146.87,146.79,1.2283]
[1724802804898,3.4034,146.86,146.79,1.2283]
[1724802805094,0.04317695,146.84,146.79,1.2283]
[1724802805289,0.04317695,146.84,146.82,3.4042]
[1724802809104,0.04317695,146.84,146.78,6.56]
[1724802809806,0.04317695,146.84,146.81,3.4043]
[1724802810399,0.04317695,146.84,146.81,6.79358789]
[1724802810610,0.04317695,146.84,146.82,3.4042]
[1724802812201,0.04317695,146.84,146.81,6.85347398]
[1724802812510,0.04317695,146.84,146.81,3.4045]
[1724802812905,0.04317695,146.84,146.81,6.80922582]
[1724802813101,0.04317695,146.84,146.81,3.4045]
[1724802813698,0.04317695,146.84,146.83,3.4041]
[1724802813893,1.2698,146.91,146.82,28.75]
[1724802814101,1.2698,146.91,146.84,28.75]
[1724802814407,30.0198,146.91,146.8,28.75]
[1724802814605,28.75,146.89,146.8,28.75]
[1724802814813,3.4031,146.88,146.8,28.75]
[1724802815110,0.04442474,146.85,146.83,0.04317695]
[1724802816407,1.38242474,146.85,146.83,0.04317695]
[1724802816610,4.78612474,146.85,146.83,0.04317695]
[1724802817028,1.38242474,146.85,146.83,0.04317695]
[1724802817206,0.04442474,146.85,146.83,0.04317695]
[1724802821215,0.04442474,146.85,146.83,3.44717695]
[1724802821812,0.04442474,146.85,146.83,0.04317695]
[1724802823407,11.5,146.84,146.83,0.04317695]
[1724802824817,11.5,146.84,146.79,3.4049]
[1724802825526,11.5,146.83,146.78,3.4052]
[1724802825717,0.04538353,146.82,146.78,6.74151135]
[1724802827011,0.04538353,146.82,146.78,3.33631135]
[1724802827311,0.04538353,146.82,146.8,11.5]
[1724802827508,0.04538353,146.82,146.81,3.4045]
[1724802827730,0.04538353,146.82,146.8,3.38056944]
[1724802827917,0.04538353,146.82,146.79,3.4049]
[1724802828506,0.04538353,146.82,146.77,3.4054]
[1724802829115,0.04538353,146.82,146.77,3.32643947]
[1724802829320,3.44978353,146.82,146.77,3.4054]
[1724802829720,0.04538353,146.82,146.75,3.47112649]
[1724802830014,28.76,146.81,146.71,37.8279]
[1724802830319,0.0490174,146.77,146.71,37.8279]
[1724802830632,0.0490174,146.77,146.72,29.79034142]
[1724802830917,0.0490174,146.77,146.72,32.18631698]
[1724802831324,0.0490174,146.77,146.74,3.406]
[1724802832419,0.0490174,146.77,146.75,3.4059]
[1724802832720,0.0490174,146.77,146.75,28.76]
[1724802833022,0.0490174,146.77,146.76,3.4057]
[1724802833824,28.76,146.85,146.77,3.4053]
[1724802834011,1.3235,146.84,146.74,28.76]
[1724802834213,3.4048,146.8,146.74,28.76]
[1724802834416,28.76,146.82,146.75,3.4059]
[1724802834726,3.4049,146.8,146.72,32.18631698]
[1724802834916,0.05075125,146.77,146.75,0.0490174]
[1724802840941,3.45645125,146.77,146.75,0.0490174]
[1724802842637,3.4057,146.76,146.75,0.0490174]
[1724802845739,28.81075125,146.77,146.66,28.76]
[1724802845943,28.76,146.77,146.68,28.76]
[1724802846143,30.086,146.79,146.7,3.4069]
[1724802846532,0.04544962,146.76,146.7,28.76]
[1724802846744,3.45124962,146.76,146.7,28.76]
[1724802847138,0.04544962,146.76,146.7,28.76]
[1724802847841,3.45114962,146.76,146.71,3.4067]
[1724802848745,0.04544962,146.76,146.72,3.4065]
[1724802849047,0.04544962,146.76,146.72,28.76]
[1724802849251,0.04544962,146.76,146.73,3.4062]
[1724802849452,6.52,146.83,146.74,28.76]
[1724802849453,28.76,146.83,146.74,28.76]
[1724802849641,33.9804,147.1,146.77,28.76]
[1724802849642,3.9356,146.87,146.77,28.76]
[1724802850021,3.9356,146.87,146.82,28.76]
[1724802850022,1.2704,146.87,146.82,28.76]
[1724802850171,30.0304,146.91,146.82,28.76]
[1724802850335,3.4027,146.89,146.83,6.74157632]
[1724802850538,0.05108704,146.87,146.85,0.04420157]
[1724802850745,0.05108704,146.87,146.85,3.44904962]
[1724802850939,0.05108704,146.87,146.85,0.04544962]
[1724802851745,2.6652,146.95,146.86,28.76]
[1724802852148,28.76,146.94,146.84,32.18350228]
[1724802852347,2.6652,146.95,146.83,1.3261]
[1724802852548,28.76,146.91,146.83,1.3261]
[1724802852775,3.4028,146.89,146.83,4.78400277]
[1724802852952,0.04568255,146.88,146.86,0.04476727]
[1724802853147,0.05045231,146.88,146.86,0.04867171]
[1724802853547,3.45355231,146.88,146.86,0.04867171]
[1724802853753,0.05045231,146.88,146.86,0.04867171]
[1724802853947,3.4031,146.87,146.86,0.04867171]
[1724802854444,3.404,146.84,146.78,3.405]
[1724802854647,3.404,146.84,146.78,13.30913888]
[1724802854956,3.404,146.84,146.78,9.90413888]
[1724802855454,0.04581758,146.82,146.8,0.0462849]
[1724802860372,3.4045,146.81,146.8,0.0462849]
[1724802860554,0.04581758,146.82,146.8,0.0462849]
[1724802860948,3.45031758,146.82,146.8,0.0462849]
[1724802861252,28.80581758,146.82,146.65,25.16768439]
[1724802861456,1.2254,146.81,146.72,28.76]
[1724802861758,1.2254,146.81,146.74,28.76]
[1724802861943,1.2254,146.81,146.72,28.76]
[1724802862143,3.4048,146.8,146.72,28.76]
[1724802862353,0.05074861,146.78,146.74,3.4061]
[1724802865353,0.05074861,146.78,146.75,3.4058]
[1724802865856,0.05074861,146.78,146.72,28.76]
[1724802866151,0.05074861,146.78,146.74,3.4061]
[1724802866548,3.4055,146.77,146.7,7.8474]
[1724802866851,0.05138915,146.75,146.7,7.8474]
[1724802867052,0.05138915,146.75,146.71,3.4067]
[1724802867240,0.05138915,146.75,146.7,7.8474]
[1724802867648,0.05138915,146.75,146.72,3.4065]
[1724802867848,0.05138915,146.75,146.71,28.76]
[1724802868251,0.05138915,146.75,146.72,3.4066]
[1724802869454,1.2254,146.81,146.76,3.4056]
[1724802869755,1.2254,146.81,146.77,3.41237121]
[1724802869963,29.9854,146.81,146.7,7.8474]
[1724802870266,29.9854,146.81,146.72,28.76]
[1724802870451,0.05149856,146.78,146.75,0.04695954]
[1724802871753,3.4057,146.76,146.75,0.04695954]
[1724802872152,28.76,146.77,146.75,0.04695954]
[1724802872355,0.05149856,146.78,146.75,0.04695954]
[1724802872589,3.4056,146.77,146.75,0.04695954]
[1724802872748,0.05149856,146.78,146.75,0.04695954]
[1724802872960,3.45689856,146.78,146.75,0.04695954]
[1724802873756,28.76,146.77,146.75,0.04695954]
[1724802874557,3.4057,146.76,146.75,0.04695954]
[1724802876269,3.4055,146.77,146.75,0.04695954]
[1724802876851,3.4057,146.76,146.75,0.04695954]
[1724802882164,3.4059,146.75,146.72,3.4065]
[1724802882466,1.2835,146.8,146.72,28.76]
[1724802882856,3.4053,146.78,146.74,3.406]
[1724802883257,0.04561792,146.77,146.74,3.406]
[1724802883662,3.45121792,146.77,146.73,3.4063]
[1724802883863,0.0464948,146.76,146.73,3.4063]
[1724802884457,0.0464948,146.76,146.72,3.47789137]
[1724802884762,0.0464948,146.76,146.7,28.76]
[1724802884979,0.0464948,146.76,146.7,3.45766516]
[1724802885171,0.0464948,146.76,146.67,1.3395]
[1724802885372,0.04364311,146.73,146.67,1.3395]
[1724802885688,0.04364311,146.73,146.68,3.38444562]
[1724802886202,3.45014311,146.73,146.68,6.79184562]
[1724802886380,0.04364311,146.73,146.68,6.79184562]
[1724802886877,28.80364311,146.73,146.66,1.3092]
[1724802887365,28.80364311,146.73,146.66,3.40760343]
[1724802887565,1.3279,146.72,146.62,35.24]
[1724802887764,0.04397505,146.68,146.62,35.24]
[1724802888166,0.04397505,146.68,146.66,3.4078]
[1724802888370,0.04397505,146.68,146.66,6.90017347]
[1724802889868,30.0235,146.76,146.66,32.25237347]
[1724802890078,30.0235,146.76,146.67,1.3497]
[1724802890961,0.04459477,146.73,146.7,0.04998471]
[1724802892272,0.04459477,146.73,146.7,3.45698471]
[1724802892670,0.04459477,146.73,146.7,0.04998471]
[1724802893767,0.04459477,146.73,146.7,28.80998471]
[1724802894672,0.04459477,146.73,146.71,3.4067]
[1724802895471,0.04459477,146.73,146.7,3.45708471]
[1724802896370,0.04459477,146.73,146.7,0.04998471]
[1724802897073,3.4066,146.72,146.7,0.04998471]
[1724802897789,3.45099477,146.73,146.7,0.04998471]
[1724802898977,3.45099477,146.73,146.7,3.51574616]
[1724802899380,0.04459477,146.73,146.7,3.51574616]
[1724802900769,339.0,146.87,146.71,28.76]
[1724802901018,28.76,146.82,146.72,6.48]
[1724802901311,3.4054,146.78,146.72,11.1345]
[1724802901466,28.76,146.8,146.72,7.728]
[1724802901666,28.76,146.8,146.72,1.248]
[1724802901884,0.04639483,146.77,146.75,0.04469275]
[1724802902080,3.45199483,146.77,146.75,0.04469275]
[1724802902481,0.04639483,146.77,146.75,0.04469275]
[1724802902684,3.4057,146.76,146.75,0.04469275]
[1724802903583,3.45189483,146.77,146.75,0.04469275]
[1724802904285,3.4057,146.76,146.75,0.04469275]
[1724802904876,3.4064,146.73,146.69,3.35697751]
[1724802905081,3.4064,146.73,146.67,1.2186]
[1724802905382,30.0062,146.76,146.67,29.9786]
[1724802905383,3.4062,146.74,146.67,29.9786]
[1724802905597,3.4062,146.74,146.67,36.4586]
[1724802905971,0.05178868,146.72,146.7,3.45688673]
[1724802906176,0.05178868,146.72,146.7,0.04988673]
[1724802908076,0.05178868,146.72,146.7,3.45678673]
[1724802908483,0.05178868,146.72,146.7,0.04988673]
[1724802908781,28.76,146.82,146.7,0.04988673]
[1724802908990,2.6621,146.81,146.72,28.76]
[1724802909282,2.6621,146.81,146.72,3.42488358]
[1724802909479,28.76,146.8,146.7,28.76]
[1724802909688,0.05236865,146.76,146.74,0.04530052]
[1724802910588,3.4059,146.75,146.74,0.04530052]
[1724802915293,3.45816865,146.76,146.74,0.04530052]
[1724802915592,0.05236865,146.76,146.74,0.04530052]
[1724802916492,0.05236865,146.76,146.75,3.4059]
[1724802917383,0.05236865,146.76,146.74,0.04530052]
[1724802917583,28.81236865,146.76,146.74,0.04530052]
[1724802917993,3.4059,146.75,146.74,0.04530052]
[1724802928204,3.45816865,146.76,146.74,0.04530052]
[1724802928394,0.05236865,146.76,146.74,0.04530052]
[1724802928806,0.05236865,146.76,146.75,3.4059]
[1724802929105,0.05236865,146.76,146.75,32.1659]
[1724802929329,9.96866955,146.82,146.78,3.405]
[1724802929600,1.3278,146.84,146.78,3.405]
[1724802929805,3.4044,146.82,146.78,3.405]
[1724802930017,11.2975725,146.84,146.77,32.14343447]
[1724802930302,0.04360542,146.82,146.79,0.04651642]
[1724802930706,3.4046,146.81,146.79,0.04651642]
[1724802932026,3.44800542,146.82,146.79,0.04651642]
[1724802932406,0.04360542,146.82,146.79,0.04651642]
[1724802933898,0.04360542,146.82,146.79,3.45151642]
[1724802935113,0.04360542,146.82,146.79,0.04651642]
[1724802936019,3.4046,146.81,146.79,0.04651642]
[1724802937426,0.04360542,146.82,146.79,0.04651642]
[1724802937918,28.80360542,146.82,146.79,0.04651642]
[1724802938122,1.3381,146.81,146.79,0.04651642]
[1724802938512,3.4048,146.8,146.79,0.04651642]
[1724802940921,3.4057,146.77,146.74,3.4061]
[1724802941123,3.4057,146.77,146.72,35.2]
[1724802941124,30.1084,146.8,146.72,6.44]
[1724802941318,31.4049,146.8,146.72,6.44]
[1724802941624,3.4057,146.76,146.73,3.4063]
[1724802942121,3.406,146.75,146.73,0.04483147]
[1724802942326,0.04339663,146.76,146.73,0.04483147]
[1724802942822,3.4061,146.74,146.73,0.04483147]
[1724802965534,32.1661,146.74,146.73,0.04483147]
[1724802966337,3.4072,146.7,146.67,3.4077]
[1724802967048,3.4074,146.69,146.66,8.07768881]
[1724802967240,3.45212658,146.69,146.66,8.12247521]
[1724802968037,3.45212658,146.69,146.66,19.63247521]
[1724802968242,3.45212658,146.69,146.66,16.22457521]
[1724802969637,0.04472658,146.69,146.66,3.45367521]
[1724802970142,3.45212658,146.69,146.66,14.96367521]
[1724802972742,3.4076,146.68,146.66,14.96367521]
[1724802973047,0.04472658,146.69,146.66,14.96367521]
[1724802973436,3.45212658,146.69,146.66,3.45367521]
[1724802973644,3.45212658,146.69,146.66,14.96367521]
[1724802973940,3.45212658,146.69,146.66,3.45367521]
[1724802975745,3.4076,146.68,146.66,3.45367521]
[1724802977854,3.45212658,146.69,146.66,3.45367521]
[1724802978348,3.4077,146.68,146.66,3.45367521]
[1724802978550,0.04472658,146.69,146.66,0.0447864]
[1724802979045,3.4078,146.67,146.66,0.0447864]
[1724802979344,14.9178,146.67,146.66,0.0447864]
[1724802980541,14.9178,146.67,146.57,1.5177]
[1724802980542,3.4096,146.59,146.57,1.2305]
[1724802980740,11.51,146.63,146.57,16.1506]
[1724802981549,3.4095,146.6,146.57,16.1506]
[1724802981940,3.4095,146.6,146.57,12.7405]
[1724802982543,0.04791571,146.61,146.59,11.51]
[1724802983652,0.04791571,146.61,146.58,12.8178]
[1724802985163,0.04791571,146.61,146.58,1.3078]
[1724802985851,3.45721571,146.61,146.58,1.3078]
[1724802987753,0.04791571,146.61,146.59,11.51]
[1724802988276,0.04791571,146.61,146.59,14.9194]
[1724802989159,0.04791571,146.61,146.6,3.4094]
[1724802989349,0.04791571,146.61,146.59,11.51]
[1724802989656,0.04791571,146.61,146.59,14.9195]
[1724802990650,3.4083,146.65,146.6,11.51]
[1724802990853,1.2214,146.68,146.63,11.51]
[1724802991051,2.5719,146.74,146.66,11.51]
[1724802991354,11.51,146.73,146.66,11.51]
[1724802991750,3.4073,146.69,146.68,0.04329061]
[1724802996857,3.4073,146.69,146.63,3.37357332]
[1724802996858,3.4083,146.65,146.63,3.37357332]
[1724802997564,3.4086,146.64,146.58,37.7305]
[1724802997757,0.04812168,146.65,146.62,0.02253487]
[1724802997954,0.04812168,146.65,146.62,3.44313376]
[1724802998156,3.45642168,146.65,146.62,0.02253487]
[1724802998354,0.04812168,146.65,146.62,3.41656678]
[1724802998657,2.5719,146.74,146.64,28.77]
[1724802998964,2.5719,146.74,146.67,28.77]
[1724802999758,0.04826999,146.72,146.69,0.0476697]
[1724803000257,3.45486999,146.72,146.69,0.0476697]
[1724803000853,0.04826999,146.72,146.69,0.0476697]
[1724803002161,3.4071,146.7,146.69,0.0476697]
[1724803006820,0.04826999,146.72,146.69,0.0476697]
[1724803007163,3.4071,146.7,146.69,0.0476697]
[1724803018071,14.9171,146.7,146.69,0.0476697]
[1724803019262,3.4071,146.7,146.69,0.0476697]
[1724803019462,0.04826999,146.72,146.69,0.0476697]
[1724803020070,0.04826999,146.72,146.7,3.407]
[1724803020576,0.04826999,146.72,146.71,3.4068]
[1724803022268,0.04826999,146.72,146.7,6.78455202]
[1724803022469,0.04826999,146.72,146.7,3.407]
[1724803022970,0.04826999,146.72,146.7,6.8470004]
[1724803023375,0.04826999,146.72,146.7,3.4400004]
[1724803023669,0.04826999,146.72,146.69,1.3573697]
[1724803023867,3.45496999,146.72,146.69,0.0476697]
[1724803024376,3.45496999,146.72,146.7,3.41272827]
[1724803024869,0.04826999,146.72,146.69,28.8376697]
[1724803025266,0.04826999,146.72,146.7,3.40489388]
[1724803025985,0.04826999,146.72,146.69,0.0476697]
[1724803026771,3.407,146.71,146.69,0.0476697]
[1724803026974,0.04826999,146.72,146.69,0.0476697]
[1724803027665,3.4071,146.7,146.69,0.0476697]
[1724803028377,3.4082,146.66,146.62,3.39403191]
[1724803028580,3.4082,146.66,146.6,6.36]
[1724803028776,3.4082,146.66,146.62,3.4088]
[1724803029476,3.45261074,146.65,146.63,0.02298685]
[1724803029775,0.04421074,146.65,146.63,0.02298685]
[1724803029968,3.45251074,146.65,146.63,0.02298685]
[1724803031575,0.04421074,146.65,146.63,0.02298685]
[1724803032774,3.45251074,146.65,146.63,0.02298685]
[1724803033878,0.04421074,146.65,146.64,3.4085]
[1724803034476,3.4075,146.69,146.64,3.4085]
[1724803034895,1.2869,146.71,146.64,3.4085]
[1724803035477,0.04960906,146.69,146.64,3.4085]